fUSD/lending_fUSD_20250208
["ID","MTS","AMOUNT","RATE_DAILY","PERIOD"]
[352332858,1739044266984,-570.78,0.00010682,2]
[352332859,1739044266994,-500.0,0.00010682,2]
[352332860,1739044267004,-841.92,0.00010682,2]
[352332861,1739044267013,-500.0,0.00010682,2]
[352332862,1739044267024,-923.35,0.00010682,2]
[352332863,1739044267033,-900.97,0.00010682,2]
[352332864,1739044267043,-500.0,0.00010682,2]
[352332865,1739044267053,-500.0,0.00010682,2]
[352332866,1739044267063,-500.0,0.00010682,2]
[352332867,1739044267073,-963.35,0.00010682,2]
[352332868,1739044267083,-500.0,0.00010682,2]
[352332869,1739044267093,-500.0,0.00010682,2]
[352332870,1739044267103,-500.0,0.00010682,2]
[352332871,1739044267113,-530.23,0.00010682,2]
[352332872,1739044267123,-568.95,0.00010682,2]
[352332873,1739044267133,-567.99,0.00010682,2]
[352332874,1739044267143,-722.24,0.00010682,2]
[352332875,1739044267153,-500.0,0.00010682,2]
[352332876,1739044267162,-907.64,0.00010683,2]
[352332877,1739044267171,-901.49,0.00010683,2]
[352332878,1739044267181,-500.0,0.00010683,2]
[352332879,1739044267192,-687.33,0.00010683,2]
[352332880,1739044267202,-500.0,0.00010683,2]
[352332881,1739044267212,-1014.06,0.00010683,2]
[352332882,1739044267222,-762.74,0.00010683,2]
[352332883,1739044267232,-500.0,0.00010683,2]
[352332884,1739044267242,-500.0,0.00010683,2]
[352332885,1739044267253,-500.0,0.00010683,2]
[352332886,1739044267264,-792.79,0.00010683,2]
[352332887,1739044267275,-500.0,0.00010683,2]
[352332888,1739044267285,-500.0,0.00010683,2]
[352332889,1739044267296,-500.0,0.00010683,2]
[352332890,1739044267305,-500.0,0.00010683,2]
[352332891,1739044267315,-669.22,0.00010683,2]
[352332892,1739044267325,-500.0,0.00010683,2]
[352332893,1739044267335,-500.0,0.00010683,2]
[352332894,1739044267345,-1103.02,0.00010683,2]
[352332895,1739044267355,-500.0,0.00010683,2]
[352332896,1739044267365,-500.0,0.00010683,2]
[352332897,1739044267375,-172.31,0.00010683,2]
[352332898,1739044267385,-901.77,0.00010683,2]
[352332899,1739044267395,-1173.160634,0.00010683,2]
[352332900,1739044267405,-500.0,0.00010683,2]
[352332901,1739044267415,-500.0,0.00010683,2]
[352332902,1739044267425,-583.68,0.00010683,2]
[352332903,1739044267435,-942.5,0.00010683,2]
[352332904,1739044267445,-500.0,0.00010683,2]
[352332905,1739044267455,-500.0,0.00010683,2]
[352332906,1739044267465,-1064.071599,0.00010683,2]
[352332907,1739044267475,-897.19,0.00010683,2]
[352332908,1739044267485,-532.45,0.00010683,2]
[352332909,1739044267495,-500.0,0.00010683,2]
[352332910,1739044267504,-763.61,0.00010683,2]
[352332911,1739044267514,-500.0,0.00010683,2]
[352332912,1739044267523,-500.0,0.00010683,2]
[352332913,1739044267533,-500.0,0.00010683,2]
[352332914,1739044267544,-977.4,0.00010683,2]
[352332915,1739044267554,-840.2,0.00010683,2]
[352332916,1739044267564,-674.41,0.00010683,2]
[352332917,1739044267575,-944.07,0.00010683,2]
[352332918,1739044267584,-500.0,0.00010683,2]
[352332919,1739044267595,-500.0,0.00010683,2]
[352332920,1739044267606,-706.28,0.00010683,2]
[352332921,1739044267616,-783.75,0.00010683,2]
[352332922,1739044267626,-500.0,0.00010683,2]
[352332923,1739044267636,-798.27,0.00010683,2]
[352332924,1739044267647,-500.0,0.00010683,2]
[352332925,1739044267657,-500.0,0.00010683,2]
[352332926,1739044267668,-500.0,0.00010683,2]
[352332927,1739044267678,-815.84,0.00010683,2]
[352332928,1739044267688,-500.0,0.00010683,2]
[352332929,1739044267698,-808.49,0.00010683,2]
[352332930,1739044267708,-500.0,0.00010683,2]
[352332931,1739044267718,-837.79,0.00010683,2]
[352332932,1739044267728,-1183.41,0.00010683,2]
[352332933,1739044267740,-676.71,0.00010683,2]
[352332934,1739044267750,-605.14,0.00010683,2]
[352332935,1739044267760,-500.0,0.00010683,2]
[352332936,1739044267771,-1618.91,0.00010683,2]
[352332937,1739044267780,-500.0,0.00010683,2]
[352332938,1739044267791,-500.0,0.00010683,2]
[352332939,1739044267801,-1150.74,0.00010683,2]
[352332940,1739044267813,-941.16,0.00010683,2]
[352332941,1739044267823,-669.83,0.00010683,2]
[352332942,1739044267833,-549.99,0.00010683,2]
[352332943,1739044267844,-1361.33,0.00010683,2]
[352332944,1739044267854,-561.18,0.00010683,2]
[352332945,1739044267864,-1366.38,0.00010683,2]
[352332946,1739044267874,-1015.97,0.00010683,2]
[352332947,1739044267884,-887.2,0.00010683,2]
[352332948,1739044267894,-1834.05,0.00010683,2]
[352332949,1739044267904,-849.57,0.00010683,2]
[352332950,1739044267914,-533.09,0.00010683,2]
[352332951,1739044267924,-500.0,0.00010683,2]
[352332952,1739044267934,-797.41,0.00010683,2]
[352332953,1739044267944,-739.56,0.00010683,2]
[352332954,1739044267954,-979.64,0.00010683,2]
[352332955,1739044267963,-500.0,0.00010683,2]
[352332956,1739044267973,-962.16,0.00010683,2]
[352332957,1739044267983,-887.97,0.00010683,2]
[352332958,1739044267993,-1057.42,0.00010683,2]
[352332959,1739044268003,-905.82,0.00010683,2]
[352332960,1739044268013,-2314.12,0.00010683,2]
[352332961,1739044268023,-500.0,0.00010683,2]
[352332962,1739044268033,-1142.98,0.00010683,2]
[352332963,1739044268043,-500.0,0.00010683,2]
[352332964,1739044268053,-500.0,0.00010683,2]
[352332965,1739044268064,-829.5,0.00010683,2]
[352332966,1739044268074,-1329.11,0.00010683,2]
[352332967,1739044268084,-1595.23,0.00010683,2]
[352332968,1739044268094,-795.37,0.00010683,2]
[352332969,1739044268104,-1702.34,0.00010683,2]
[352332970,1739044268114,-826.46,0.00010683,2]
[352332971,1739044268124,-1972.13,0.00010683,2]
[352332972,1739044268134,-1406.55,0.00010683,2]
[352332973,1739044268144,-1923.12,0.00010683,2]
[352332974,1739044268154,-567.99,0.00010683,2]
[352332975,1739044268164,-500.0,0.00010683,2]
[352332976,1739044268174,-1484.2,0.00010683,2]
[352332977,1739044268184,-1965.75,0.00010683,2]
[352332978,1739044268194,-1114.76,0.00010683,2]
[352332979,1739044268204,-646.74,0.00010683,2]
[352332980,1739044268396,-4307.64,0.00010683,2]
[352332981,1739044268406,-500.0,0.00010683,2]
[352332982,1739044268416,-1142.04,0.00010683,2]
[352332983,1739044268426,-500.0,0.00010683,2]
[352332984,1739044268436,-1348.55,0.00010683,2]
[352332985,1739044268445,-640.77,0.00010683,2]
[352332986,1739044268456,-704.02,0.00010683,2]
[352332987,1739044268465,-152.97498,0.00010683,2]
[352332988,1739044268475,-1125.13,0.00010683,2]
[352332989,1739044268484,-1470.38,0.00010683,2]
[352332990,1739044268494,-500.0,0.00010683,2]
[352332991,1739044268504,-500.0,0.00010683,2]
[352332992,1739044268514,-1284.44,0.00010683,2]
[352332993,1739044268524,-500.0,0.00010683,2]
[352332994,1739044268534,-1869.63,0.00010683,2]
[352332995,1739044268545,-1535.34,0.00010683,2]
[352332996,1739044268555,-500.0,0.00010683,2]
[352332997,1739044268568,-1897.47,0.00010683,2]
[352332998,1739044268578,-1490.63,0.00010683,2]
[352332999,1739044268587,-785.41,0.00010683,2]
[352333000,1739044268598,-2078.2,0.00010683,2]
[352333001,1739044268609,-500.0,0.00010683,2]
[352333002,1739044268618,-2749.9,0.00010683,2]
[352333003,1739044268628,-933.1,0.00010683,2]
[352333004,1739044268638,-1000.73,0.00010683,2]
[352333005,1739044268647,-1940.13,0.00010683,2]
[352333006,1739044268657,-592.37,0.00010683,2]
[352333007,1739044268667,-940.46,0.00010683,2]
[352333008,1739044268677,-998.39,0.00010683,2]
[352333009,1739044268686,-1136.94,0.00010683,2]
[352333010,1739044268696,-1883.61,0.00010683,2]
[352333011,1739044268706,-2982.03,0.00010683,2]
[352333012,1739044268716,-500.0,0.00010683,2]
[352333013,1739044268727,-979.73,0.00010683,2]
[352333014,1739044268741,-1184.77,0.00010683,2]
[352333015,1739044268752,-1359.57,0.00010683,2]
[352333016,1739044268762,-1301.55,0.00010683,2]
[352333017,1739044268772,-621.86,0.00010683,2]
[352333018,1739044268782,-500.0,0.00010683,2]
[352333019,1739044268792,-2322.33,0.00010683,2]
[352333020,1739044268802,-906.62,0.00010683,2]
[352333021,1739044268813,-500.0,0.00010683,2]
[352333022,1739044268823,-1695.52,0.00010683,2]
[352333023,1739044268833,-844.38,0.00010683,2]
[352333024,1739044268843,-1042.66,0.00010683,2]
[352333025,1739044268853,-500.0,0.00010683,2]
[352333026,1739044268862,-760.67,0.00010683,2]
[352333027,1739044268874,-500.0,0.00010683,2]
[352333028,1739044268883,-1340.43,0.00010683,2]
[352333029,1739044268894,-654.47,0.00010683,2]
[352333030,1739044268903,-953.62,0.00010683,2]
[352333031,1739044268913,-2313.29,0.00010683,2]
[352333032,1739044268922,-512.16,0.00010683,2]
[352333033,1739044268932,-500.0,0.00010683,2]
[352333034,1739044268942,-1681.63,0.00010683,2]
[352333035,1739044268952,-500.0,0.00010683,2]
[352333036,1739044268961,-1213.11,0.00010683,2]
[352333037,1739044268971,-500.0,0.00010683,2]
[352333038,1739044268980,-500.0,0.00010684,2]
[352333039,1739044268990,-500.0,0.00010684,2]
[352333040,1739044268999,-500.0,0.00010684,2]
[352333041,1739044269009,-500.0,0.00010684,2]
[352333042,1739044269019,-500.0,0.00010684,2]
[352333043,1739044269029,-500.0,0.00010684,2]
[352333044,1739044269040,-500.0,0.00010684,2]
[352333045,1739044269050,-500.0,0.00010684,2]
[352333046,1739044269059,-500.0,0.00010684,2]
[352333047,1739044269069,-500.0,0.00010684,2]
[352333048,1739044269079,-500.0,0.00010684,2]
[352333049,1739044269088,-547.98,0.00010684,2]
[352333050,1739044269098,-500.0,0.00010684,2]
[352333051,1739044269107,-500.0,0.00010684,2]
[352333052,1739044269116,-500.0,0.00010684,2]
[352333053,1739044269125,-500.0,0.00010684,2]
[352333054,1739044269134,-500.0,0.00010684,2]
[352333055,1739044269144,-500.0,0.00010684,2]
[352333056,1739044269153,-500.0,0.00010684,2]
[352333057,1739044269162,-500.0,0.00010684,2]
[352333058,1739044269171,-500.0,0.00010684,2]
[352333059,1739044269180,-500.0,0.00010684,2]
[352333060,1739044269189,-500.0,0.00010684,2]
[352333061,1739044269199,-500.0,0.00010684,2]
[352333062,1739044269208,-500.0,0.00010684,2]
[352333063,1739044269217,-986.57,0.00010684,2]
[352333064,1739044269226,-706.02,0.00010684,2]
[352333065,1739044269237,-500.0,0.00010684,2]
[352333066,1739044269248,-500.0,0.00010684,2]
[352333067,1739044269258,-500.0,0.00010684,2]
[352333068,1739044269268,-462.74,0.00010684,2]
[352333069,1739044269278,-500.0,0.00010684,2]
[352333070,1739044269288,-495.36148762,0.00010684,2]
[352333071,1739044269299,-500.0,0.00010684,2]
[352333072,1739044269311,-500.0,0.00010684,2]
[352333073,1739044269322,-500.0,0.00010684,2]
[352333074,1739044269331,-500.0,0.00010684,2]
[352333075,1739044269341,-500.0,0.00010684,2]
[352333076,1739044269351,-500.0,0.00010684,2]
[352333077,1739044269361,-904.65,0.00010684,2]
[352333078,1739044269371,-591.25,0.00010684,2]
[352333079,1739044269381,-740.96,0.00010684,2]
[352333080,1739044269390,-500.0,0.00010684,2]
[352333081,1739044269401,-500.0,0.00010684,2]
[352333082,1739044269411,-351.34,0.00010684,2]
[352333083,1739044269420,-665.51,0.00010684,2]
[352333084,1739044269430,-850.96,0.00010684,2]
[352333085,1739044269440,-559.05,0.00010684,2]
[352333086,1739044269451,-773.74,0.00010684,2]
[352333087,1739044269460,-656.05,0.00010684,2]
[352333088,1739044269469,-500.0,0.00010684,2]
[352333089,1739044269479,-500.0,0.00010684,2]
[352333090,1739044269489,-664.06,0.00010684,2]
[352333091,1739044269499,-500.0,0.00010684,2]
[352333092,1739044269508,-500.0,0.00010684,2]
[352333093,1739044269517,-500.0,0.00010684,2]
[352333094,1739044269528,-500.0,0.00010684,2]
[352333095,1739044269537,-500.0,0.00010684,2]
[352333096,1739044269547,-500.0,0.00010684,2]
[352333097,1739044269556,-500.0,0.00010684,2]
[352333098,1739044269567,-724.27,0.00010684,2]
[352333099,1739044269576,-500.0,0.00010684,2]
[352333100,1739044269586,-500.0,0.00010684,2]
[352333101,1739044269595,-500.0,0.00010684,2]
[352333102,1739044269605,-571.91,0.00010684,2]
[352333103,1739044269614,-241.82276636,0.00010684,2]
[352333104,1739044269624,-761.07,0.00010684,2]
[352333105,1739044269634,-500.0,0.00010684,2]
[352333106,1739044269644,-500.0,0.00010684,2]
[352333107,1739044269654,-500.0,0.00010684,2]
[352333108,1739044269663,-500.0,0.00010684,2]
[352333109,1739044269672,-500.0,0.00010684,2]
[352333110,1739044269682,-688.99,0.00010684,2]
[352333111,1739044269692,-766.21,0.00010684,2]
[352333112,1739044269702,-795.25,0.00010684,2]
[352333113,1739044269712,-570.06,0.00010684,2]
[352333114,1739044269722,-815.13,0.00010684,2]
[352333115,1739044269735,-500.0,0.00010684,2]
[352333116,1739044269745,-500.0,0.00010684,2]
[352333117,1739044269755,-500.0,0.00010684,2]
[352333118,1739044269765,-500.0,0.00010684,2]
[352333119,1739044269776,-386.06184338,0.00010684,2]
[352333120,1739044269785,-500.0,0.00010684,2]
[352333121,1739044269795,-500.0,0.00010684,2]
[352333122,1739044269805,-500.0,0.00010684,2]
[352333123,1739044269816,-805.97,0.00010684,2]
[352333124,1739044269827,-500.0,0.00010684,2]
[352333125,1739044269836,-500.0,0.00010684,2]
[352333126,1739044269846,-500.0,0.00010684,2]
[352333127,1739044269857,-500.0,0.00010684,2]
[352333128,1739044269868,-677.64,0.00010684,2]
[352333129,1739044269878,-500.0,0.00010684,2]
[352333130,1739044269888,-500.0,0.00010684,2]
[352333131,1739044269897,-500.0,0.00010684,2]
[352333132,1739044269907,-500.0,0.00010684,2]
[352333133,1739044269917,-500.0,0.00010684,2]
[352333134,1739044269927,-821.99,0.00010684,2]
[352333135,1739044269937,-500.0,0.00010684,2]
[352333136,1739044269946,-500.0,0.00010684,2]
[352333137,1739044269956,-796.32,0.00010684,2]
[352333138,1739044269965,-871.08,0.00010684,2]
[352333139,1739044269974,-534.02,0.00010684,2]
[352333140,1739044269984,-150.0,0.00010699,2]
[352333141,1739044269994,-150.0,0.00010712,2]
[352333142,1739044270003,-500.0,0.00010715,2]
[352333143,1739044270013,-284.46935361,0.0001073,2]
[352333144,1739044270023,-150.0,0.00010735,2]
[352333145,1739044270033,-2409.6748,0.0001074,2]
[352333146,1739044270042,-1557.15699106,0.00010748,2]
[352333147,1739044270052,-300.0,0.00010752,2]
[352333148,1739044270062,-263.61696,0.0001078,2]
[352333149,1739044270071,-1150.0,0.00010786,2]
[352333150,1739044270082,-150.0,0.00010788,2]
[352333151,1739044270093,-150.0,0.00010797,2]
[352333152,1739044270103,-150.0,0.00010799,2]
[352333153,1739044270112,-300.0,0.000108,2]
[352333154,1739044270123,-196.01064639,0.00010804,2]
[352333155,1739044270133,-638.0,0.0001081,2]
[352333156,1739044270142,-150.0,0.0001081,2]
[352333157,1739044270152,-568.0,0.0001081,2]
[352333158,1739044270163,-387.282,0.0001081,2]
[352333159,1739044270173,-150.0,0.0001081,2]
[352333160,1739044270183,-607.294,0.0001081,2]
[352333161,1739044270193,-1517.94,0.00010818,2]
[352333162,1739044270203,-1328.1,0.00010818,2]
[352333163,1739044270215,-1378.83,0.00010818,2]
[352333164,1739044270225,-699.67,0.00010818,2]
[352333165,1739044270235,-1364.62,0.00010818,2]
[352333166,1739044270245,-1727.31,0.00010818,2]
[352333167,1739044270261,-4799.66,0.00010818,2]
[352333168,1739044270270,-902.26,0.00010818,2]
[352333169,1739044270281,-1251.59,0.00010818,2]
[352333170,1739044270291,-1266.98,0.00010818,2]
[352333171,1739044270300,-945.57,0.00010818,2]
[352333172,1739044270310,-1673.76,0.00010818,2]
[352333173,1739044270320,-500.0,0.00010818,2]
[352333174,1739044270330,-993.51,0.00010818,2]
[352333175,1739044270341,-1246.39,0.00010818,2]
[352333176,1739044270357,-1412.8,0.00010818,2]
[352333177,1739044270367,-1000.0,0.00010818,2]
[352333178,1739044270377,-887.01,0.00010818,2]
[352333179,1739044270386,-1185.97,0.00010818,2]
[352333180,1739044270396,-1288.61,0.00010818,2]
[352333181,1739044270405,-1248.36589689,0.00010819,3]
[352333182,1739044270414,-570.78,0.00010819,2]
[352333183,1739044270423,-500.0,0.00010819,2]
[352333184,1739044270433,-841.92,0.00010819,2]
[352333185,1739044270442,-500.0,0.00010819,2]
[352333186,1739044270453,-923.35,0.00010819,2]
[352333187,1739044270462,-900.97,0.00010819,2]
[352333188,1739044270472,-500.0,0.00010819,2]
[352333189,1739044270481,-500.0,0.00010819,2]
[352333190,1739044270491,-500.0,0.00010819,2]
[352333191,1739044270501,-963.35,0.00010819,2]
[352333192,1739044270511,-500.0,0.00010819,2]
[352333193,1739044270521,-500.0,0.00010819,2]
[352333194,1739044270529,-551.13,0.00010819,2]
[352333195,1739044270539,-530.23,0.00010819,2]
[352333196,1739044270548,-568.95,0.00010819,2]
[352333197,1739044270558,-567.99,0.00010819,2]
[352333198,1739044270567,-722.24,0.00010819,2]
[352333199,1739044270577,-151.0,0.0001082,2]
[352333200,1739044270586,-1071.074,0.0001082,2]
[352333201,1739044270595,-907.64,0.0001082,2]
[352333202,1739044270605,-901.49,0.0001082,2]
[352333203,1739044270615,-500.0,0.0001082,2]
[352333204,1739044270625,-687.33,0.0001082,2]
[352333205,1739044270635,-500.0,0.0001082,2]
[352333206,1739044270644,-1014.06,0.0001082,2]
[352333207,1739044270654,-762.74,0.0001082,2]
[352333208,1739044270663,-500.0,0.0001082,2]
[352333209,1739044270673,-500.0,0.0001082,2]
[352333210,1739044270682,-500.0,0.0001082,2]
[352333211,1739044270692,-792.79,0.0001082,2]
[352333212,1739044270701,-500.0,0.0001082,2]
[352333213,1739044270711,-403.09859588,0.0001082,2]
[352333214,1739044270720,-500.0,0.0001082,2]
[352333215,1739044270730,-500.0,0.0001082,2]
[352333216,1739044270804,-669.22,0.0001082,2]
[352333217,1739044270815,-500.0,0.0001082,2]
[352333218,1739044270825,-500.0,0.0001082,2]
[352333219,1739044270835,-1103.02,0.0001082,2]
[352333220,1739044270846,-500.0,0.0001082,2]
[352333221,1739044270856,-435.62,0.0001082,2]
[352333222,1739044270865,-901.77,0.0001082,2]
[352333223,1739044270874,-1173.160634,0.0001082,2]
[352333224,1739044270884,-500.0,0.0001082,2]
[352333225,1739044270894,-155.69757,0.0001082,2]
[352333226,1739044270903,-500.0,0.0001082,2]
[352333227,1739044270912,-583.68,0.0001082,2]
[352333228,1739044270921,-942.5,0.0001082,2]
[352333229,1739044270930,-500.0,0.0001082,2]
[352333230,1739044270940,-500.0,0.0001082,2]
[352333231,1739044270949,-1064.071599,0.0001082,2]
[352333232,1739044270959,-897.19,0.0001082,2]
[352333233,1739044270968,-532.45,0.0001082,2]
[352333234,1739044270978,-156.508673,0.0001082,2]
[352333235,1739044270988,-500.0,0.0001082,2]
[352333236,1739044270998,-763.61,0.0001082,2]
[352333237,1739044271008,-500.0,0.0001082,2]
[352333238,1739044271018,-466.73776862,0.0001082,2]
[352333239,1739044271027,-500.0,0.0001082,2]
[352333240,1739044271036,-977.4,0.0001082,2]
[352333241,1739044271045,-840.2,0.0001082,2]
[352333242,1739044271054,-674.41,0.0001082,2]
[352333243,1739044271066,-944.07,0.0001082,2]
[352333244,1739044271076,-500.0,0.0001082,2]
[352333245,1739044271085,-500.0,0.0001082,2]
[352333246,1739044271094,-706.28,0.0001082,2]
[352333247,1739044271104,-783.75,0.0001082,2]
[352333248,1739044271113,-500.0,0.0001082,2]
[352333249,1739044271123,-798.27,0.0001082,2]
[352333250,1739044271132,-500.0,0.0001082,2]
[352333251,1739044271142,-500.0,0.0001082,2]
[352333252,1739044271152,-501.06,0.0001082,2]
[352333253,1739044271161,-815.84,0.0001082,2]
[352333254,1739044271171,-500.0,0.0001082,2]
[352333255,1739044271181,-808.49,0.0001082,2]
[352333256,1739044271192,-500.0,0.0001082,2]
[352333257,1739044271203,-837.79,0.0001082,2]
[352333258,1739044271212,-1183.41,0.0001082,2]
[352333259,1739044271222,-676.71,0.0001082,2]
[352333260,1739044271231,-605.14,0.0001082,2]
[352333261,1739044271241,-500.0,0.0001082,2]
[352333262,1739044271251,-1618.91,0.0001082,2]
[352333263,1739044271260,-500.0,0.0001082,2]
[352333264,1739044271270,-500.0,0.0001082,2]
[352333265,1739044271279,-1150.74,0.0001082,2]
[352333266,1739044271288,-941.16,0.0001082,2]
[352333267,1739044271298,-669.83,0.0001082,2]
[352333268,1739044271307,-549.99,0.0001082,2]
[352333269,1739044271319,-1361.33,0.0001082,2]
[352333270,1739044271329,-561.18,0.0001082,2]
[352333271,1739044271339,-1366.38,0.0001082,2]
[352333272,1739044271349,-1015.97,0.0001082,2]
[352333273,1739044271358,-887.2,0.0001082,2]
[352333274,1739044271368,-1834.05,0.0001082,2]
[352333275,1739044271377,-849.57,0.0001082,2]
[352333276,1739044271386,-533.09,0.0001082,2]
[352333277,1739044271396,-251.06676781,0.0001082,2]
[352333278,1739044271406,-797.41,0.0001082,2]
[352333279,1739044271415,-739.56,0.0001082,2]
[352333280,1739044271425,-979.64,0.0001082,2]
[352333281,1739044271435,-500.0,0.0001082,2]
[352333282,1739044271444,-962.16,0.0001082,2]
[352333283,1739044271453,-887.97,0.0001082,2]
[352333284,1739044271463,-1057.42,0.0001082,2]
[352333285,1739044271473,-905.82,0.0001082,2]
[352333286,1739044271482,-2314.12,0.0001082,2]
[352333287,1739044271492,-500.0,0.0001082,2]
[352333288,1739044271501,-1142.98,0.0001082,2]
[352333289,1739044271511,-500.0,0.0001082,2]
[352333290,1739044271521,-500.0,0.0001082,2]
[352333291,1739044271531,-829.5,0.0001082,2]
[352333292,1739044271540,-1329.11,0.0001082,2]
[352333293,1739044271550,-1595.23,0.0001082,2]
[352333294,1739044271561,-795.37,0.0001082,2]
[352333295,1739044271570,-1702.34,0.0001082,2]
[352333296,1739044271580,-826.46,0.0001082,2]
[352333297,1739044271590,-1972.13,0.0001082,2]
[352333298,1739044271599,-1406.55,0.0001082,2]
[352333299,1739044271609,-1923.12,0.0001082,2]
[352333300,1739044271618,-567.99,0.0001082,2]
[352333301,1739044271627,-1484.2,0.0001082,2]
[352333302,1739044271637,-1965.75,0.0001082,2]
[352333303,1739044271646,-1114.76,0.0001082,2]
[352333304,1739044271656,-646.74,0.0001082,2]
[352333305,1739044271665,-4307.64,0.0001082,2]
[352333306,1739044271675,-500.0,0.0001082,2]
[352333307,1739044271684,-1142.04,0.0001082,2]
[352333308,1739044271694,-500.0,0.0001082,2]
[352333309,1739044271704,-1348.55,0.0001082,2]
[352333310,1739044271713,-640.77,0.0001082,2]
[352333311,1739044271723,-704.02,0.0001082,2]
[352333312,1739044271735,-1125.13,0.0001082,2]
[352333313,1739044271745,-1470.38,0.0001082,2]
[352333314,1739044271755,-500.0,0.0001082,2]
[352333315,1739044271766,-1284.44,0.0001082,2]
[352333316,1739044271778,-500.0,0.0001082,2]
[352333317,1739044271789,-1869.63,0.0001082,2]
[352333318,1739044271799,-1535.34,0.0001082,2]
[352333319,1739044271812,-500.0,0.0001082,2]
[352333320,1739044271821,-1897.47,0.0001082,2]
[352333321,1739044271831,-1490.63,0.0001082,2]
[352333322,1739044271841,-785.41,0.0001082,2]
[352333323,1739044271852,-2078.2,0.0001082,2]
[352333324,1739044271862,-500.0,0.0001082,2]
[352333325,1739044271871,-2749.9,0.0001082,2]
[352333326,1739044271879,-933.1,0.0001082,2]
[352333327,1739044271889,-1000.73,0.0001082,2]
[352333328,1739044271899,-1940.13,0.0001082,2]
[352333329,1739044271910,-592.37,0.0001082,2]
[352333330,1739044271919,-940.46,0.0001082,2]
[352333331,1739044271928,-998.39,0.0001082,2]
[352333332,1739044271939,-1136.94,0.0001082,2]
[352333333,1739044271950,-1883.61,0.0001082,2]
[352333334,1739044271960,-2982.03,0.0001082,2]
[352333335,1739044271970,-500.0,0.0001082,2]
[352333336,1739044271980,-979.73,0.0001082,2]
[352333337,1739044271990,-1184.77,0.0001082,2]
[352333338,1739044272000,-1359.57,0.0001082,2]
[352333339,1739044272010,-1301.55,0.0001082,2]
[352333340,1739044272019,-621.86,0.0001082,2]
[352333341,1739044272028,-500.0,0.0001082,2]
[352333342,1739044272038,-2322.33,0.0001082,2]
[352333343,1739044272047,-906.62,0.0001082,2]
[352333344,1739044272058,-1695.52,0.0001082,2]
[352333345,1739044272068,-844.38,0.0001082,2]
[352333346,1739044272078,-1042.66,0.0001082,2]
[352333347,1739044272087,-500.0,0.0001082,2]
[352333348,1739044272097,-760.67,0.0001082,2]
[352333349,1739044272106,-500.0,0.0001082,2]
[352333350,1739044272115,-1340.43,0.0001082,2]
[352333351,1739044272125,-654.47,0.0001082,2]
[352333352,1739044272136,-953.62,0.0001082,2]
[352333353,1739044272145,-2313.29,0.0001082,2]
[352333354,1739044272155,-512.16,0.0001082,2]
[352333355,1739044272165,-500.0,0.0001082,2]
[352333356,1739044272174,-1681.63,0.0001082,2]
[352333357,1739044272183,-151.0,0.0001082,2]